bitfinex/quotes_SOLUSD_20240530
["timestamp","ask_amount","ask_price","bid_price","bid_amount"]
[1717057230303,27.9443,164.22,164.16,60.0]
[1717057230459,8.7775,164.22,164.18,60.0]
[1717057230971,6.5243,164.22,164.18,62.2534]
[1717057231173,6.5243,164.22,164.18,62.2535]
[1717057231382,6.5243,164.22,164.18,80.5335]
[1717057231582,6.5243,164.22,164.18,78.28]
[1717057231959,8.7774,164.22,164.18,18.28]
[1717057232890,15.439,164.25,164.14,4.5082]
[1717057232891,8.2701,164.21,164.14,60.0]
[1717057233182,8.2701,164.21,164.15,2.2539]
[1717057233384,8.2701,164.21,164.16,60.0]
[1717057233595,21.42,164.19,164.12,388.7]
[1717057233886,8.797,164.16,164.12,388.7]
[1717057234458,6.543,164.16,164.12,388.7]
[1717057235579,6.543,164.16,164.13,18.28]
[1717057235783,21.42,164.19,164.13,18.28]
[1717057236296,2.2536,164.18,164.13,78.28]
[1717057236466,21.42,164.19,164.13,78.28]
[1717057236660,2.2535,164.19,164.15,60.0]
[1717057236861,6.1317,164.21,164.17,60.0]
[1717057237089,6.1317,164.21,164.17,62.2537]
[1717057237683,6.1317,164.21,164.16,18.28]
[1717057239467,2.2533,164.2,164.16,18.28]
[1717057240066,8.3849,164.21,164.17,60.0]
[1717057240661,2.2532,164.21,164.17,78.28]
[1717057241660,2.2533,164.2,164.17,60.0]
[1717057242393,4.5045,164.28,164.21,60.0]
[1717057242588,2.2527,164.25,164.21,60.0]
[1717057242997,2.2525,164.26,164.21,62.2532]
[1717057243177,2.2525,164.26,164.21,60.0]
[1717057243782,6.2514,164.29,164.21,60.0]
[1717057244087,6.2514,164.29,164.23,78.28]
[1717057244277,6.2514,164.29,164.25,60.0]
[1717057244486,21.42,164.31,164.25,60.0]
[1717057245265,21.42,164.31,164.23,78.28]
[1717057245768,21.42,164.31,164.25,60.0]
[1717057246180,21.42,164.31,164.25,78.28]
[1717057246376,2.252,164.3,164.25,78.28]
[1717057246578,2.2522,164.29,164.25,18.28]
[1717057246789,2.2522,164.28,164.25,18.28]
[1717057246997,21.42,164.31,164.25,18.28]
[1717057247169,21.42,164.31,164.25,78.28]
[1717057248966,2.252,164.3,164.25,80.5325]
[1717057249280,2.2518,164.31,164.27,60.0]
[1717057249777,2.2519,164.3,164.27,60.0]
[1717057250282,2.2518,164.31,164.27,60.0]
[1717057251378,2.2519,164.3,164.27,60.0]
[1717057251577,2.2518,164.31,164.27,78.28]
[1717057252079,2.2519,164.3,164.27,78.28]
[1717057252265,2.2518,164.31,164.27,78.28]
[1717057252463,0.8107064,164.32,164.3,60.0]
[1717057252676,0.8107064,164.32,164.28,60.0]
[1717057252876,0.8107064,164.32,164.28,62.2522]
[1717057253066,3.0624064,164.32,164.28,60.0]
[1717057253486,0.8107064,164.32,164.28,60.0]
[1717057253966,0.8107064,164.32,164.28,80.5322]
[1717057254362,0.8107064,164.32,164.28,78.28]
[1717057254990,3.0624064,164.32,164.28,60.0]
[1717057255195,0.8107064,164.32,164.26,20.5324]
[1717057255699,2.2519,164.31,164.26,20.5324]
[1717057256373,0.8107064,164.32,164.27,78.28]
[1717057256574,0.8107064,164.32,164.28,2.2521]
[1717057256782,3.0624064,164.32,164.27,2.2523]
[1717057257182,3.0624064,164.32,164.28,2.2522]
[1717057257421,2.2518,164.31,164.26,18.28]
[1717057257778,2.2518,164.31,164.26,20.5324]
[1717057258403,2.252,164.3,164.25,60.0]
[1717057258609,6.5471,164.29,164.22,60.0]
[1717057258909,2.2523,164.28,164.23,2.2529]
[1717057259120,8.5861,164.28,164.23,2.2529]
[1717057259784,8.5861,164.28,164.24,2.2527]
[1717057259979,27.5708,164.26,164.16,60.0]
[1717057260183,27.5708,164.26,164.14,60.0]
[1717057260184,21.42,164.23,164.14,60.0]
[1717057260391,21.42,164.23,164.15,2.2539]
[1717057260392,2.2532,164.21,164.15,2.2539]
[1717057260809,2.2532,164.21,164.11,393.2089]
[1717057260810,6.3984,164.21,164.16,62.2538]
[1717057260995,6.3984,164.26,164.18,60.0]
[1717057261302,2.2527,164.25,164.19,2.2533]
[1717057261482,2.2527,164.25,164.16,60.0]
[1717057261483,27.8184,164.26,164.18,2.2535]
[1717057261689,27.8184,164.26,164.16,78.28]
[1717057262108,27.8184,164.26,164.18,78.28]
[1717057262288,2.2526,164.25,164.2,60.0]
[1717057262610,23.6725,164.26,164.2,80.5333]
[1717057262790,2.2525,164.26,164.2,80.5333]
[1717057263115,2.2526,164.25,164.19,2.2533]
[1717057263404,32.0387,164.31,164.14,60.0]
[1717057263405,2.2533,164.2,164.14,60.0]
[1717057263579,23.6732,164.21,164.15,2.254]
[1717057263993,2.2534,164.2,164.14,60.0]
[1717057264202,2.2533,164.2,164.14,60.0]
[1717057264407,6.4652,164.18,164.12,18.28]
[1717057264706,8.6688,164.19,164.13,2.2542]
[1717057265003,8.6688,164.19,164.13,62.2542]
[1717057265508,8.6688,164.19,164.14,2.2541]
[1717057265996,6.4153,164.19,164.14,18.28]
[1717057266319,2.2538,164.17,164.13,60.0]
[1717057266492,6.0985,164.18,164.13,62.2542]
[1717057266979,6.0985,164.18,164.14,2.2541]
[1717057267381,21.42,164.21,164.15,60.0]
[1717057267588,6.5241,164.24,164.18,2.2536]
[1717057267783,2.2532,164.21,164.15,60.0]
[1717057268204,2.2534,164.2,164.15,60.0]
[1717057268405,27.7395,164.2,164.11,60.0]
[1717057268634,27.7395,164.2,164.13,60.0]
[1717057268902,27.7395,164.2,164.11,78.28]
[1717057269299,2.254,164.16,164.1,2.2546]
[1717057269502,2.254,164.15,164.1,2.2546]
[1717057269708,6.3195,164.15,164.11,2.2545]
[1717057269897,2.2538,164.16,164.12,60.0]
[1717057270315,2.2541,164.14,164.09,78.28]
[1717057270505,6.5059,164.14,164.09,78.28]
[1717057270693,6.5059,164.14,164.09,20.5348]
[1717057270893,6.5059,164.14,164.09,78.28]
[1717057271110,2.254,164.15,164.09,78.28]
[1717057271312,4.5078,164.16,164.07,78.28]
[1717057271496,2.2543,164.13,164.07,80.535]
[1717057271694,2.2543,164.13,164.08,2.2549]
[1717057271889,2.2541,164.14,164.1,60.0]
[1717057272115,6.2358,164.15,164.1,62.2547]
[1717057272419,6.2358,164.15,164.09,20.5348]
[1717057273104,8.4898,164.15,164.09,20.5348]
[1717057273318,8.8867,164.14,164.08,78.28]
[1717057273514,8.8867,164.14,164.09,2.2547]
[1717057273701,6.6326,164.14,164.08,60.0]
[1717057273898,8.3203,164.13,164.08,60.0]
[1717057274416,8.3203,164.13,164.08,62.2549]
[1717057276306,8.3203,164.13,164.06,18.28]
[1717057276307,2.2545,164.12,164.06,80.5351]
[1717057276516,8.3937,164.12,164.07,2.255]
[1717057276901,6.1392,164.12,164.08,62.2549]
[1717057277113,21.42,164.14,164.08,62.2549]
[1717057277617,23.6742,164.14,164.08,62.2549]
[1717057277820,2.2543,164.13,164.08,62.2549]
[1717057278018,8.3794,164.13,164.08,62.2549]
[1717057278231,2.2543,164.13,164.08,80.5349]
[1717057278905,8.3783,164.13,164.07,20.5351]
[1717057280022,8.3783,164.13,164.08,2.2549]
[1717057280220,8.3783,164.13,164.08,62.2549]
[1717057280428,8.3783,164.13,164.08,80.5349]
[1717057280628,2.2543,164.13,164.1,60.0]
[1717057281220,2.2543,164.13,164.08,80.5349]
[1717057281406,2.2543,164.13,164.09,60.0]
[1717057281723,2.2543,164.13,164.08,20.5349]
[1717057281917,23.6742,164.14,164.09,62.2548]
[1717057282822,2.2543,164.13,164.09,60.0]
[1717057283044,2.2543,164.13,164.08,20.5349]
[1717057283206,2.2544,164.12,164.08,18.28]
[1717057283406,2.2544,164.12,164.07,60.0]
[1717057283606,25.9285,164.14,164.07,60.0]
[1717057283823,2.2545,164.12,164.07,62.2551]
[1717057284107,2.2544,164.12,164.07,60.0]
[1717057284818,2.2545,164.11,164.06,2.2552]
[1717057285006,2.2547,164.1,164.05,80.5353]
[1717057285240,6.6151,164.11,164.07,60.0]
[1717057285535,21.42,164.14,164.08,2.2549]
[1717057285536,8.2715,164.13,164.08,2.2549]
[1717057285740,2.2545,164.12,164.07,62.255]
[1717057286035,8.5363,164.12,164.07,62.2551]
[1717057288228,8.5363,164.12,164.07,80.5351]
[1717057288534,2.2543,164.13,164.09,60.0]
[1717057288723,2.2543,164.13,164.08,20.5349]
[1717057288919,2.2543,164.13,164.08,18.28]
[1717057289131,8.3372,164.13,164.07,62.255]
[1717057289432,6.0829,164.13,164.09,60.0]
[1717057289637,6.0829,164.13,164.08,2.2548]
[1717057289838,6.0829,164.13,164.09,60.0]
[1717057290039,2.2539,164.16,164.09,78.28]
[1717057290334,8.2654,164.15,164.1,2.2546]
[1717057290514,8.2654,164.15,164.11,60.0]
[1717057290713,8.2654,164.15,164.1,18.28]
[1717057290914,8.2654,164.15,164.09,62.2548]
[1717057290915,2.2541,164.14,164.09,62.2548]
[1717057291212,2.2543,164.13,164.09,60.0]
[1717057291811,2.2544,164.12,164.07,62.2551]
[1717057292238,6.2347,164.11,164.05,60.0]
[1717057292408,6.2347,164.11,164.08,60.0]
[1717057292409,8.4893,164.11,164.08,60.0]
[1717057292608,39.8697,164.16,164.08,60.0]
[1717057292609,7.15,164.09,164.08,78.28]
[1717057292829,6.4619,164.15,164.11,60.0]
[1717057293034,7.15,164.12,164.11,60.0]
[1717057293312,28.6,164.16,164.11,60.0]
[1717057293612,7.15,164.14,164.13,60.0]
[1717057293813,7.15,164.14,164.13,62.2543]
[1717057294015,7.15,164.14,164.13,60.0]
[1717057294227,6.0798,164.21,164.15,60.0]
[1717057294420,6.0798,164.21,164.15,78.28]
[1717057294421,2.2534,164.2,164.15,78.28]
[1717057294613,7.15,164.17,164.15,78.28]
[1717057294826,7.15,164.17,164.15,80.534]
[1717057295429,2.2531,164.22,164.18,60.0]
[1717057295740,7.15,164.19,164.18,60.0]
[1717057296314,2.2532,164.21,164.18,60.0]
[1717057297648,13.5137,164.28,164.19,18.28]
[1717057297962,2.2526,164.25,164.2,60.0]
[1717057298137,2.2526,164.25,164.15,4.508]
[1717057298138,2.2524,164.27,164.23,60.0]
[1717057298529,6.534,164.29,164.25,60.0]
[1717057298735,28.3156064,164.32,164.25,60.0]
[1717057298922,2.2519,164.31,164.27,60.0]
[1717057299728,2.2519,164.3,164.27,60.0]
[1717057300321,2.2519,164.3,164.25,62.2525]
[1717057300621,2.2518,164.31,164.27,60.0]
[1717057301148,2.2518,164.31,164.25,80.5326]
[1717057301347,2.252,164.3,164.25,80.5326]
[1717057301520,28.5841064,164.32,164.25,18.28]
[1717057301521,2.2521,164.29,164.25,18.28]
[1717057302243,2.2521,164.29,164.24,2.2527]
[1717057302451,2.2521,164.29,164.24,62.2527]
[1717057303129,2.2524,164.27,164.22,78.28]
[1717057303435,2.2522,164.28,164.23,2.2528]
[1717057303615,30.3035,164.29,164.23,2.2528]
[1717057303814,28.0514,164.29,164.24,60.0]
[1717057304016,28.0514,164.29,164.22,388.7]
[1717057304017,2.2523,164.27,164.22,450.953]
[1717057304250,2.2524,164.27,164.22,448.7]
[1717057304752,8.408,164.27,164.22,450.953]
[1717057304929,6.1556,164.27,164.23,2.2528]
[1717057305815,2.2522,164.28,164.24,60.0]
[1717057306024,2.2522,164.28,164.25,18.28]
[1717057306246,5.3141064,164.32,164.26,60.0]
[1717057306247,22.2207064,164.32,164.26,60.0]
[1717057306441,2.2518,164.31,164.26,62.2524]
[1717057307030,2.2519,164.3,164.26,60.0]
[1717057307259,2.2518,164.31,164.26,62.2525]
[1717057308257,2.2518,164.31,164.23,4.5058]
[1717057308258,22.2207064,164.32,164.29,60.0]
[1717057308564,0.8107064,164.32,164.29,60.0]
[1717057309065,3.0624064,164.32,164.27,80.5323]
[1717057309269,0.8107064,164.32,164.28,2.2522]
[1717057309546,3.0624064,164.32,164.27,80.5323]
[1717057309759,0.8107064,164.32,164.28,2.2522]
[1717057310129,0.8107064,164.32,164.29,2.252]
[1717057310364,0.8107064,164.32,164.29,62.252]
[1717057310662,0.8107064,164.32,164.28,2.2522]
[1717057311039,0.8107064,164.32,164.29,62.252]
[1717057311426,0.8107064,164.32,164.31,60.0]
[1717057311827,0.8107064,164.32,164.31,62.2518]
[1717057312999,0.8107064,164.32,164.29,62.2521]
[1717057313144,0.8107064,164.32,164.29,60.0]
[1717057313674,0.8107064,164.32,164.29,62.252]
[1717057313957,0.8107064,164.32,164.3,2.2519]
[1717057314123,0.8107064,164.32,164.31,62.2518]
[1717057314332,0.8107064,164.32,164.31,60.0]
[1717057314554,0.8107064,164.32,164.3,2.2519]
[1717057314937,0.8107064,164.32,164.29,60.0]
[1717057314938,0.8107064,164.32,164.29,2.252]
[1717057315248,0.8107064,164.32,164.3,78.28]
[1717057315562,0.8107064,164.32,164.3,80.5319]
[1717057316237,0.8107064,164.32,164.3,78.28]
[1717057316629,0.8107064,164.32,164.3,80.5319]
[1717057317244,0.8107064,164.32,164.31,2.2518]
[1717057317667,0.8107064,164.32,164.3,80.5319]
[1717057320658,0.8107064,164.32,164.3,60.0]
[1717057320861,0.8107064,164.32,164.28,62.2521]
[1717057321064,3.0624064,164.32,164.28,62.2521]
[1717057321454,0.8107064,164.32,164.28,62.2521]
[1717057321764,0.8107064,164.32,164.28,62.2522]
[1717057321971,0.8107064,164.32,164.28,78.28]
[1717057322144,3.0624064,164.32,164.28,78.28]
[1717057323043,3.0624064,164.32,164.28,80.5322]
[1717057323479,2.2518,164.31,164.26,388.7]
[1717057323650,3.0624064,164.32,164.28,60.0]
[1717057324068,2.2518,164.31,164.26,390.9524]
[1717057324366,2.2521,164.3,164.26,388.7]
[1717057325242,23.6618,164.31,164.26,390.9525]
[1717057325443,2.2519,164.3,164.26,390.9525]
[1717057325671,2.2519,164.3,164.26,388.7]
[1717057325962,8.6895,164.3,164.26,388.7]
[1717057326169,8.6897,164.29,164.24,62.2527]
[1717057326345,8.6897,164.29,164.22,2.2529]
[1717057326346,21.41,164.28,164.22,2.2529]
[1717057326549,2.2525,164.26,164.21,2.2532]
[1717057326872,8.6901,164.26,164.21,2.2532]
[1717057327063,2.2523,164.27,164.23,60.0]
[1717057327845,8.7666,164.27,164.23,60.0]
[1717057328053,6.1188,164.26,164.22,2.253]
[1717057328252,6.1188,164.26,164.21,60.0]
[1717057328469,2.2527,164.25,164.21,60.0]
[1717057328657,2.2528,164.24,164.19,448.7]
[1717057328862,8.7766,164.25,164.19,469.2333]
[1717057329175,8.7766,164.25,164.2,2.2533]
[1717057329776,21.41,164.25,164.19,448.7]
[1717057329952,2.2529,164.23,164.19,448.7]
[1717057330148,2.2528,164.24,164.19,62.2534]
[1717057330348,8.5193,164.24,164.19,62.2534]
[1717057330554,2.2529,164.23,164.19,60.0]
[1717057330955,6.1517,164.24,164.17,62.2537]
[1717057331272,2.2529,164.23,164.17,62.2537]
[1717057331875,6.6062,164.23,164.19,60.0]
[1717057332064,21.41,164.25,164.19,62.2534]
[1717057332469,2.2529,164.24,164.19,60.0]
[1717057332780,8.4012,164.23,164.19,60.0]
[1717057333071,2.2528,164.24,164.19,78.28]
[1717057333276,2.2528,164.24,164.19,60.0]
[1717057333586,23.6627,164.25,164.19,62.2533]
[1717057333961,23.6627,164.25,164.21,60.0]
[1717057334181,27.5583,164.28,164.21,80.5331]
[1717057334466,2.2526,164.26,164.22,60.0]
[1717057334661,2.2526,164.25,164.2,2.2533]
[1717057334873,8.887,164.25,164.2,2.2533]
[1717057335564,8.887,164.25,164.19,80.5334]
[1717057335774,2.2528,164.24,164.19,80.5334]
[1717057336286,8.887,164.25,164.21,60.0]
[1717057336479,2.2525,164.26,164.23,60.0]
[1717057337763,30.1777,164.31,164.25,60.0]
[1717057337986,6.5158,164.3,164.24,78.28]
[1717057338190,6.5158,164.3,164.23,388.7]
[1717057338356,2.2521,164.29,164.24,60.0]
[1717057338677,0.8107064,164.32,164.31,60.0]
[1717057339176,0.8107064,164.32,164.3,2.2519]
[1717057339388,0.8107064,164.32,164.31,60.0]
[1717057339567,0.8107064,164.32,164.31,80.5318]
[1717057340396,0.8107064,164.32,164.31,60.0]
[1717057340894,0.8107064,164.32,164.31,80.5318]
[1717057341379,21.41,164.41,164.36,60.0]
[1717057341564,21.41,164.41,164.36,62.2511]
[1717057341759,21.41,164.41,164.32,78.28]
[1717057342087,23.6609,164.38,164.34,60.0]
[1717057342682,23.6609,164.38,164.32,62.2516]
[1717057342857,21.41,164.38,164.3,60.0]
[1717057343176,8.3184,164.35,164.3,60.0]
[1717057343558,27.4771,164.35,164.28,60.0]
[1717057343884,8.5486,164.32,164.28,60.0]
[1717057344075,6.2968,164.32,164.28,60.0]
[1717057344782,6.2968,164.32,164.28,62.2522]
[1717057345179,6.2968,164.32,164.26,2.2524]
[1717057345384,23.6622,164.29,164.23,62.2528]
[1717057345765,6.0974,164.28,164.24,2.2527]
[1717057346961,6.0974,164.28,164.23,62.2528]
[1717057347878,46.1254,164.32,164.26,62.2525]
[1717057348180,27.7767,164.32,164.28,60.0]
[1717057348385,2.2518,164.32,164.26,62.2524]
[1717057348557,21.41,164.32,164.26,62.2524]
[1717057349361,2.2522,164.28,164.24,60.0]
[1717057349559,21.41,164.32,164.24,2.2527]
[1717057349866,2.2522,164.29,164.23,2.2528]
[1717057350072,27.4603,164.29,164.23,2.2528]
[1717057350662,29.7125,164.29,164.24,62.2527]
[1717057351591,2.2522,164.28,164.24,60.0]
[1717057352093,29.7124,164.29,164.24,60.0]
[1717057352672,2.2522,164.28,164.23,2.2529]
[1717057352884,2.2523,164.27,164.22,469.233]
[1717057353184,27.4603,164.29,164.25,2.2526]
[1717057353482,27.4603,164.29,164.24,60.0]
[1717057353682,2.2528,164.24,164.22,388.7]
[1717057353876,8.7998,164.25,164.22,388.7]
[1717057354081,8.7995,164.28,164.23,60.0]
[1717057354280,8.7995,164.28,164.23,62.2529]
[1717057354483,2.2524,164.27,164.22,388.7]
[1717057354683,2.2526,164.25,164.22,388.7]
[1717057355296,2.2525,164.26,164.22,388.7]
[1717057355676,8.5834,164.27,164.23,60.0]
[1717057355987,8.5835,164.27,164.22,390.953]
[1717057356176,6.3311,164.27,164.23,60.0]
[1717057356579,21.41,164.29,164.25,60.0]
[1717057356773,2.2521,164.3,164.25,60.0]
[1717057357172,2.2521,164.29,164.25,60.0]
[1717057358198,2.252,164.3,164.25,60.0]
[1717057358691,2.2521,164.29,164.25,60.0]
[1717057359282,2.2525,164.27,164.23,60.0]
[1717057359481,2.2522,164.28,164.23,62.2529]
[1717057359976,2.2521,164.29,164.24,2.2527]
[1717057360173,21.41,164.32,164.27,60.0]
[1717057360379,6.4528,164.33,164.29,60.0]
[1717057360593,2.2514,164.34,164.29,62.2519]
[1717057361173,2.2513,164.35,164.31,60.0]
[1717057361370,2.2513,164.35,164.31,62.2518]
[1717057361573,2.2511,164.37,164.33,60.0]
[1717057361873,21.41,164.38,164.33,60.0]
[1717057361874,23.6608,164.38,164.33,62.2515]
[1717057362285,2.2508,164.38,164.33,62.2515]
[1717057362896,21.41,164.41,164.3,2.2519]
[1717057363093,21.41,164.41,164.26,408.9723]
[1717057363094,21.41,164.34,164.26,485.33]
[1717057363294,2.2518,164.31,164.26,450.9524]
[1717057363497,2.2517,164.32,164.27,2.2523]
[1717057363902,21.41,164.34,164.26,450.9525]
[1717057363903,2.2519,164.31,164.26,450.9525]
[1717057364275,2.2517,164.32,164.26,450.9525]
[1717057364797,2.2519,164.31,164.26,450.9525]
[1717057365510,2.2517,164.32,164.28,60.0]
[1717057365701,21.41,164.34,164.28,60.0]
[1717057365702,2.2511,164.36,164.31,62.2517]
[1717057366100,21.41,164.39,164.32,60.0]
[1717057366395,2.2509,164.38,164.33,2.2515]
[1717057366695,23.6607,164.39,164.33,62.2515]
[1717057366881,2.2509,164.38,164.33,2.2515]
[1717057367193,2.251,164.37,164.32,20.5316]
[1717057367399,2.2509,164.38,164.33,60.0]
[1717057367586,2.2509,164.38,164.33,2.2515]
[1717057367894,2.251,164.37,164.32,2.2516]
[1717057368067,2.2509,164.38,164.34,60.0]
[1717057368271,21.41,164.39,164.32,2.2516]
[1717057368272,2.251,164.37,164.32,2.2516]
[1717057368690,2.2509,164.38,164.32,2.2516]
[1717057369093,2.2509,164.38,164.32,62.2516]
[1717057369698,2.251,164.37,164.32,2.2516]
[1717057369882,2.251,164.37,164.33,60.0]
[1717057370079,8.6406,164.37,164.32,2.2516]
[1717057370273,6.3896,164.36,164.32,2.2516]
[1717057370700,6.4822,164.35,164.31,2.2518]
[1717057371208,6.4822,164.35,164.31,62.2518]
[1717057371393,2.2515,164.34,164.29,62.2521]
[1717057371572,21.41,164.36,164.27,450.9523]
[1717057371573,6.4591,164.32,164.27,450.9523]
[1717057371772,2.2515,164.33,164.27,448.7]
[1717057371773,8.7106,164.33,164.27,448.7]
[1717057371972,8.7106,164.33,164.27,388.7]
[1717057371973,21.41,164.33,164.27,388.7]
[1717057372207,6.174,164.27,164.22,60.0]
[1717057372377,6.174,164.26,164.22,60.0]
[1717057373030,6.174,164.26,164.2,388.7]
[1717057373031,16.2914,164.28,164.2,448.7]
[1717057373179,2.2526,164.25,164.2,390.9533]
[1717057373379,6.3853,164.23,164.2,388.7]
[1717057373585,6.3853,164.22,164.2,388.7]
[1717057373804,27.6598,164.24,164.2,390.9533]
[1717057373978,23.6624,164.27,164.21,2.253]
[1717057374179,8.5023,164.26,164.2,450.9533]
[1717057374479,2.2526,164.25,164.2,450.9533]
[1717057374686,6.2498,164.23,164.2,450.9533]
[1717057375101,6.2498,164.23,164.2,448.7]
[1717057375793,6.3727,164.2,164.16,60.0]
[1717057375993,6.3727,164.2,164.17,2.2537]
[1717057376300,15.3013,164.22,164.18,60.0]
[1717057376301,6.3632,164.22,164.18,60.0]
[1717057376499,6.3632,164.22,164.18,62.2536]
[1717057377307,6.2894,164.21,164.18,60.0]
[1717057377487,6.2894,164.2,164.16,60.0]
[1717057377685,6.2894,164.2,164.16,62.2537]
[1717057377878,4.5062,164.22,164.16,60.0]
[1717057378082,6.0256,164.23,164.16,60.0]
[1717057378294,6.0256,164.23,164.16,62.2537]
[1717057378707,2.2532,164.21,164.16,60.0]
[1717057378912,6.0909,164.21,164.14,2.2541]
[1717057379091,6.0909,164.21,164.12,60.0]
[1717057379092,10.5974,164.21,164.12,60.0]
[1717057379294,8.3446,164.17,164.12,62.2544]
[1717057379682,2.2536,164.18,164.12,62.2544]
[1717057380182,2.2537,164.17,164.12,2.2544]
[1717057380381,2.254,164.15,164.05,20.2979]
[1717057380581,1.61057657,164.2,164.14,60.0]
[1717057380582,6.2697,164.2,164.14,60.0]
[1717057380992,22.3315,164.24,164.17,60.0]
[1717057381291,2.2531,164.22,164.16,2.2538]
[1717057381504,2.2531,164.22,164.15,60.0]
[1717057381692,2.2533,164.21,164.16,2.2538]
[1717057382015,6.2228,164.21,164.15,78.28]
[1717057382198,8.476,164.21,164.16,2.2537]
[1717057383591,8.476,164.21,164.17,60.0]
[1717057383789,6.2782,164.25,164.19,62.2533]
[1717057384112,8.5309,164.25,164.19,62.2533]
[1717057384320,15.5166,164.28,164.18,2.2535]
[1717057384518,6.7589,164.23,164.14,2.2541]
[1717057384720,4.5061,164.22,164.14,60.0]
[1717057385018,8.4318,164.21,164.16,60.0]
[1717057385312,6.1785,164.19,164.14,62.254]
[1717057385617,6.6539,164.23,164.15,2.2539]
[1717057385795,2.2534,164.2,164.14,62.2541]
[1717057386113,2.2534,164.19,164.14,62.2541]
[1717057386293,2.2533,164.2,164.15,2.2539]
[1717057386490,2.2531,164.22,164.16,62.2538]
[1717057386715,2.2531,164.22,164.17,2.2537]
[1717057387216,20.2722,164.27,164.14,18.28]
[1717057387217,6.3855,164.21,164.15,2.2539]
[1717057387395,4.5053,164.25,164.15,2.2539]
[1717057387396,8.8055,164.2,164.15,2.2539]
[1717057387715,8.8055,164.2,164.16,60.0]
[1717057387915,2.2534,164.19,164.14,80.5341]
[1717057388620,8.8054,164.2,164.15,2.254]
[1717057388923,8.8054,164.2,164.16,60.0]
[1717057389490,8.8054,164.2,164.15,2.254]
[1717057389691,2.2535,164.19,164.14,62.2541]
[1717057390406,2.2533,164.2,164.16,60.0]
[1717057390602,6.4651,164.24,164.18,60.0]
[1717057390915,8.7179,164.24,164.19,2.2534]
[1717057391421,8.7179,164.24,164.2,60.0]
[1717057391596,2.2529,164.24,164.2,60.0]
[1717057392197,2.2529,164.23,164.2,60.0]
[1717057392401,2.2529,164.23,164.18,80.5335]
[1717057392827,2.2531,164.22,164.18,60.0]
[1717057393503,4.5051,164.26,164.18,62.2536]
[1717057393710,2.2532,164.21,164.18,60.0]
[1717057394221,6.3634,164.21,164.17,2.2537]
[1717057394433,8.6166,164.21,164.16,62.2538]
[1717057394921,8.8522,164.2,164.16,62.2538]
[1717057395330,8.8522,164.2,164.16,60.0]
[1717057396030,2.2536,164.19,164.13,390.9542]
[1717057396212,8.2747,164.18,164.13,390.9542]
[1717057396908,8.3675,164.18,164.13,390.9542]
[1717057397104,8.3676,164.17,164.13,388.7]
[1717057397417,6.1138,164.19,164.13,388.7]
[1717057398008,2.2538,164.17,164.13,388.7]
[1717057398833,6.1138,164.19,164.15,60.0]
[1717057399012,2.2535,164.19,164.15,60.0]
[1717057399215,2.2533,164.2,164.15,62.254]